[Event "Titled Tuesday Blitz May 23 Late 2023"]
[White "Ognean, Mihnea-Ionut"]
[Black "Schnaider, Ilan"]
[WhiteFideId "1232347"]
[BlackFideId "169013"]
[WhiteElo "2215"]
[BlackElo "2224"]
[Result "1-0"]
[Round "10"]
[TimeControl "180+2"]
[Date "2023.05.23"]
[WhiteClock "0:00:05"]
[BlackClock "0:00:00"]

1. Nf3 {[%clk 0:02:57]}  Nf6 {[%clk 0:03:00]} 2. b3 {[%clk 0:02:57]}  g6 {[%clk 0:03:00]} 3. Bb2 {[%clk 0:02:57]}  Bg7 {[%clk 0:03:01]} 4. g3 {[%clk 0:02:57]}  O-O {[%clk 0:03:01]} 5. Bg2 {[%clk 0:02:58]}  d5 {[%clk 0:03:01]} 6. O-O {[%clk 0:02:56]}  c5 {[%clk 0:03:02]} 7. d3 {[%clk 0:02:55]}  Nc6 {[%clk 0:03:02]} 8. Nbd2 {[%clk 0:02:54]}  Re8 {[%clk 0:03:02]} 9. e4 {[%clk 0:02:49]}  d4 {[%clk 0:03:03]} 10. a4 {[%clk 0:02:48]}  a6 {[%clk 0:03:00]} 11. h3 {[%clk 0:02:42]}  Bd7 {[%clk 0:02:56]} 12. Nc4 {[%clk 0:02:38]}  b5 {[%clk 0:02:54]} 13. Nce5 {[%clk 0:02:29]}  Qc7 {[%clk 0:02:50]} 14. Nxd7 {[%clk 0:02:20]}  Nxd7 {[%clk 0:02:51]} 15. Nd2 {[%clk 0:02:18]}  e5 {[%clk 0:02:47]} 16. f4 {[%clk 0:02:12]}  Qd6 {[%clk 0:02:27]} 17. h4 {[%clk 0:01:43]}  Ne7 {[%clk 0:02:21]} 18. f5 {[%clk 0:01:31]}  Rac8 {[%clk 0:01:57]} 19. Bc1 {[%clk 0:01:17]}  Nf6 {[%clk 0:01:51]} 20. g4 {[%clk 0:01:03]}  gxf5 {[%clk 0:01:50]} 21. exf5 {[%clk 0:00:53]}  Ned5 {[%clk 0:01:50]} 22. Ne4 {[%clk 0:00:53]}  Nxe4 {[%clk 0:01:44]} 23. Bxe4 {[%clk 0:00:54]}  Nc3 {[%clk 0:01:44]} 24. Qf3 {[%clk 0:00:52]}  f6 {[%clk 0:01:33]} 25. axb5 {[%clk 0:00:51]}  axb5 {[%clk 0:01:32]} 26. g5 {[%clk 0:00:43]}  c4 {[%clk 0:01:04]} 27. Kh2 {[%clk 0:00:24]}  cxb3 {[%clk 0:00:58]} 28. cxb3 {[%clk 0:00:24]}  Nxe4 {[%clk 0:00:57]} 29. dxe4 {[%clk 0:00:21]}  Rc2+ {[%clk 0:00:57]} 30. Rf2 {[%clk 0:00:20]}  Rec8 {[%clk 0:00:56]} 31. Bd2 {[%clk 0:00:19]}  d3 {[%clk 0:00:44]} 32. Rg1 {[%clk 0:00:18]}  Kh8 {[%clk 0:00:35]} 33. g6 {[%clk 0:00:17]}  h6 {[%clk 0:00:20]} 34. Qh5 {[%clk 0:00:17]}  Qf8 {[%clk 0:00:18]} 35. Rgg2 {[%clk 0:00:17]}  Kg8 {[%clk 0:00:18]} 36. Qf3 {[%clk 0:00:11]}  Rd8 {[%clk 0:00:17]} 37. Ba5 {[%clk 0:00:09]}  Rxf2 {[%clk 0:00:15]} 38. Rxf2 {[%clk 0:00:08]}  Rd7 {[%clk 0:00:16]} 39. Rd2 {[%clk 0:00:08]}  Qc8 {[%clk 0:00:15]} 40. Kh3 {[%clk 0:00:07]}  Qc1 {[%clk 0:00:12]} 41. Rxd3 {[%clk 0:00:06]}  Qc6 {[%clk 0:00:06]} 42. Rxd7 {[%clk 0:00:05]}  Qxd7 {[%clk 0:00:07]} 43. Qc3 {[%clk 0:00:04]}  Bf8 {[%clk 0:00:06]} 44. Qc7 {[%clk 0:00:04]}  Qe7 {[%clk 0:00:03]} 45. Qxe7 {[%clk 0:00:03]}  Bxe7 {[%clk 0:00:04]} 46. Kg4 {[%clk 0:00:03]}  Bf8 {[%clk 0:00:04]} 47. h5 {[%clk 0:00:03]}  Bc5 {[%clk 0:00:02]} 48. Kf3 {[%clk 0:00:04]}  Kg7 {[%clk 0:00:01]} 49. Ke2 {[%clk 0:00:05]}  Kf8 {[%clk 0:00:01]} 50. Kd3 {[%clk 0:00:05]}  Ke7 {[%clk 0:00:00]} 51. Bd2 {[%clk 0:00:05]} 1-0


[Site "https://www.chess.com"]

[Event "Titled Tuesday Blitz May 23 Late 2023"]
[White "Dragomirescu, Robin-Alexandru"]
[Black "Chor, Kevin"]
[WhiteFideId "1213849"]
[BlackFideId "2090740"]
[WhiteElo "2356"]
[BlackElo "2631"]
[Result "0-1"]
[Round "10"]
[TimeControl "180+2"]
[Date "2023.05.23"]
[WhiteClock "0:01:45"]
[BlackClock "0:01:45"]

1. b3 {[%clk 0:03:00]}  Nf6 {[%clk 0:02:59]} 2. Bb2 {[%clk 0:03:01]}  g6 {[%clk 0:02:59]} 3. Bxf6 {[%clk 0:03:00]}  exf6 {[%clk 0:03:00]} 4. c4 {[%clk 0:03:00]}  Bg7 {[%clk 0:03:00]} 5. Nc3 {[%clk 0:03:00]}  O-O {[%clk 0:03:00]} 6. g3 {[%clk 0:02:58]}  d6 {[%clk 0:02:57]} 7. Bg2 {[%clk 0:02:59]}  f5 {[%clk 0:02:54]} 8. Qc2 {[%clk 0:02:58]}  Nc6 {[%clk 0:02:52]} 9. e3 {[%clk 0:02:57]}  f4 {[%clk 0:02:33]} 10. gxf4 {[%clk 0:02:56]}  Bf5 {[%clk 0:02:31]} 11. Be4 {[%clk 0:02:45]}  Nb4 {[%clk 0:02:26]} 12. Qb1 {[%clk 0:02:44]}  Bxe4 {[%clk 0:02:18]} 13. Qxe4 {[%clk 0:02:44]}  Re8 {[%clk 0:02:04]} 14. Qb1 {[%clk 0:02:39]}  d5 {[%clk 0:02:04]} 15. cxd5 {[%clk 0:02:32]}  Bxc3 {[%clk 0:02:00]} 16. dxc3 {[%clk 0:02:31]}  Qxd5 {[%clk 0:02:00]} 17. cxb4 {[%clk 0:02:26]}  Qxh1 {[%clk 0:01:56]} 18. Kf1 {[%clk 0:02:16]}  Qxh2 {[%clk 0:01:53]} 19. Qc1 {[%clk 0:02:10]}  c6 {[%clk 0:01:51]} 20. Qc3 {[%clk 0:02:07]}  Rad8 {[%clk 0:01:49]} 21. Re1 {[%clk 0:01:45]}  Qh5 {[%clk 0:01:45]} 0-1


[Site "https://www.chess.com"]

[Event "Titled Tuesday Blitz May 23 Late 2023"]
[White "NikaVolkov"]
[Black "Senft, Sean"]
[BlackFideId "2044960"]
[WhiteElo "2623"]
[BlackElo "1989"]
[Result "0-1"]
[Round "10"]
[TimeControl "180+2"]
[Date "2023.05.23"]
[WhiteClock "0:01:18"]
[BlackClock "0:00:16"]

1. d4 {[%clk 0:02:58]}  d5 {[%clk 0:02:59]} 2. Nf3 {[%clk 0:02:57]}  Nf6 {[%clk 0:03:00]} 3. e3 {[%clk 0:02:58]}  c6 {[%clk 0:03:00]} 4. c4 {[%clk 0:02:59]}  a6 {[%clk 0:02:58]} 5. Be2 {[%clk 0:02:59]}  Bf5 {[%clk 0:02:58]} 6. Ne5 {[%clk 0:03:00]}  Nbd7 {[%clk 0:02:56]} 7. Qb3 {[%clk 0:02:59]}  Ra7 {[%clk 0:02:55]} 8. f4 {[%clk 0:02:58]}  g6 {[%clk 0:02:55]} 9. Nc3 {[%clk 0:02:55]}  Bg7 {[%clk 0:02:55]} 10. O-O {[%clk 0:02:55]}  O-O {[%clk 0:02:40]} 11. cxd5 {[%clk 0:02:55]}  cxd5 {[%clk 0:02:41]} 12. Nxd5 {[%clk 0:02:54]}  Be6 {[%clk 0:02:41]} 13. Nxd7 {[%clk 0:02:43]}  Qxd7 {[%clk 0:02:38]} 14. Nxf6+ {[%clk 0:02:43]}  Bxf6 {[%clk 0:02:31]} 15. Qd3 {[%clk 0:02:43]}  b5 {[%clk 0:02:29]} 16. Bd2 {[%clk 0:02:41]}  Bc4 {[%clk 0:02:27]} 17. Qe4 {[%clk 0:02:38]}  Bxe2 {[%clk 0:02:26]} 18. Rf2 {[%clk 0:02:39]}  Bc4 {[%clk 0:02:26]} 19. f5 {[%clk 0:02:39]}  Rc7 {[%clk 0:02:18]} 20. Bc3 {[%clk 0:02:34]}  Rfc8 {[%clk 0:02:11]} 21. Qg4 {[%clk 0:02:34]}  Bd3 {[%clk 0:02:05]} 22. a3 {[%clk 0:02:21]}  a5 {[%clk 0:02:03]} 23. h4 {[%clk 0:02:16]}  b4 {[%clk 0:01:52]} 24. axb4 {[%clk 0:02:17]}  axb4 {[%clk 0:01:52]} 25. Bxb4 {[%clk 0:02:17]}  Rc1+ {[%clk 0:01:53]} 26. Rxc1 {[%clk 0:02:17]}  Rxc1+ {[%clk 0:01:53]} 27. Kh2 {[%clk 0:02:18]}  Bxf5 {[%clk 0:01:32]} 28. Qg3 {[%clk 0:02:17]}  h5 {[%clk 0:01:20]} 29. Bc3 {[%clk 0:02:14]}  Be4 {[%clk 0:01:07]} 30. Rf4 {[%clk 0:02:04]}  Qb7 {[%clk 0:01:07]} 31. Rf2 {[%clk 0:01:55]}  Qb3 {[%clk 0:00:59]} 32. Qf4 {[%clk 0:01:43]}  Qd5 {[%clk 0:00:34]} 33. Qg3 {[%clk 0:01:24]}  Rc2 {[%clk 0:00:32]} 34. Qf4 {[%clk 0:01:24]}  Rxf2 {[%clk 0:00:31]} 35. Qxf2 {[%clk 0:01:25]}  Qf5 {[%clk 0:00:26]} 36. Qg3 {[%clk 0:01:24]}  Qg4 {[%clk 0:00:22]} 37. Qxg4 {[%clk 0:01:24]}  hxg4 {[%clk 0:00:23]} 38. Kg3 {[%clk 0:01:25]}  Bf5 {[%clk 0:00:21]} 39. Kf4 {[%clk 0:01:23]}  Bxh4 {[%clk 0:00:19]} 40. e4 {[%clk 0:01:23]}  Bd7 {[%clk 0:00:17]} 41. e5 {[%clk 0:01:24]}  f6 {[%clk 0:00:17]} 42. g3 {[%clk 0:01:20]}  Bg5+ {[%clk 0:00:16]} 43. Ke4 {[%clk 0:01:21]}  f5+ {[%clk 0:00:16]} 44. Kd5 {[%clk 0:01:18]}  f4 {[%clk 0:00:16]} 45. Bd2 {[%clk 0:01:16]}  f3 {[%clk 0:00:16]} 46. Be1 {[%clk 0:01:16]}  Be3 {[%clk 0:00:16]} 47. Ke4 {[%clk 0:01:16]}  f2 {[%clk 0:00:16]} 48. Bxf2 {[%clk 0:01:17]}  Bxf2 {[%clk 0:00:17]} 49. d5 {[%clk 0:01:18]}  Bxg3 {[%clk 0:00:17]} 50. e6 {[%clk 0:01:18]}  Bb5 {[%clk 0:00:16]} 51. b4 {[%clk 0:01:18]}  Bd6 {[%clk 0:00:14]} 52. Ke3 {[%clk 0:01:17]}  g3 {[%clk 0:00:14]} 53. Kf3 {[%clk 0:01:17]}  Bc4 {[%clk 0:00:13]} 54. Kg2 {[%clk 0:01:17]}  Bxd5+ {[%clk 0:00:14]} 55. Kh3 {[%clk 0:01:17]}  g2 {[%clk 0:00:15]} 56. b5 {[%clk 0:01:17]}  g1=Q {[%clk 0:00:15]} 57. b6 {[%clk 0:01:18]}  Qg3# {[%clk 0:00:16]} 0-1


[Site "https://www.chess.com"]

[Event "Titled Tuesday Blitz May 23 Late 2023"]
[White "Bilan, Danila"]
[Black "Goroshkov, Maksym"]
[WhiteFideId "24161918"]
[BlackFideId "14142716"]
[WhiteElo "2182"]
[BlackElo "2322"]
[Result "0-1"]
[Round "10"]
[TimeControl "180+2"]
[Date "2023.05.23"]
[WhiteClock "0:00:13"]
[BlackClock "0:00:47"]

1. d4 {[%clk 0:03:00]}  Nf6 {[%clk 0:02:59]} 2. Nf3 {[%clk 0:03:00]}  d6 {[%clk 0:03:00]} 3. g3 {[%clk 0:02:59]}  g6 {[%clk 0:03:00]} 4. Bg2 {[%clk 0:02:58]}  Bg7 {[%clk 0:03:01]} 5. O-O {[%clk 0:02:59]}  O-O {[%clk 0:03:00]} 6. c4 {[%clk 0:02:59]}  c5 {[%clk 0:03:00]} 7. Nc3 {[%clk 0:02:59]}  cxd4 {[%clk 0:03:00]} 8. Nxd4 {[%clk 0:03:00]}  a6 {[%clk 0:03:00]} 9. b3 {[%clk 0:02:57]}  e5 {[%clk 0:02:58]} 10. Nc2 {[%clk 0:02:54]}  Nc6 {[%clk 0:02:58]} 11. Bb2 {[%clk 0:02:52]}  Be6 {[%clk 0:02:56]} 12. Ne3 {[%clk 0:02:48]}  Rc8 {[%clk 0:02:54]} 13. Qd2 {[%clk 0:02:47]}  Bh6 {[%clk 0:02:52]} 14. h3 {[%clk 0:02:31]}  Qd7 {[%clk 0:02:44]} 15. Ned5 {[%clk 0:02:18]}  Bxd5 {[%clk 0:01:59]} 16. Nxd5 {[%clk 0:01:46]}  Nxd5 {[%clk 0:01:55]} 17. Qxh6 {[%clk 0:01:44]}  Nde7 {[%clk 0:01:55]} 18. Rad1 {[%clk 0:01:34]}  Nf5 {[%clk 0:01:54]} 19. Qd2 {[%clk 0:01:29]}  Rfd8 {[%clk 0:01:52]} 20. h4 {[%clk 0:01:20]}  Ng7 {[%clk 0:01:45]} 21. Kh2 {[%clk 0:01:17]}  f5 {[%clk 0:01:32]} 22. Bd5+ {[%clk 0:01:13]}  Kh8 {[%clk 0:01:28]} 23. f4 {[%clk 0:01:05]}  Qe7 {[%clk 0:01:16]} 24. Qe3 {[%clk 0:00:42]}  exf4 {[%clk 0:01:07]} 25. Qxe7 {[%clk 0:00:30]}  fxg3+ {[%clk 0:01:05]} 26. Kxg3 {[%clk 0:00:30]}  Nxe7 {[%clk 0:01:05]} 27. Bxb7 {[%clk 0:00:30]}  Rb8 {[%clk 0:01:00]} 28. Bxa6 {[%clk 0:00:27]}  d5 {[%clk 0:00:59]} 29. c5 {[%clk 0:00:21]}  Nc6 {[%clk 0:00:55]} 30. a3 {[%clk 0:00:17]}  Rxb3+ {[%clk 0:00:48]} 31. Rd3 {[%clk 0:00:13]}  Rxb2 {[%clk 0:00:47]} 0-1


[Site "https://www.chess.com"]

[Event "Titled Tuesday Blitz May 23 Late 2023"]
[White "Adla, Diego"]
[Black "Ambartsumova, Karina"]
[WhiteFideId "100072"]
[BlackFideId "4166299"]
[WhiteElo "2377"]
[BlackElo "2240"]
[Result "1/2-1/2"]
[Round "10"]
[TimeControl "180+2"]
[Date "2023.05.23"]
[WhiteClock "0:00:16"]
[BlackClock "0:00:16"]

1. c4 {[%clk 0:03:00]}  Nf6 {[%clk 0:02:59]} 2. Nc3 {[%clk 0:03:00]}  g6 {[%clk 0:02:59]} 3. e4 {[%clk 0:03:00]}  d6 {[%clk 0:02:59]} 4. d4 {[%clk 0:03:00]}  Bg7 {[%clk 0:02:59]} 5. Nf3 {[%clk 0:03:00]}  O-O {[%clk 0:02:59]} 6. Be2 {[%clk 0:03:01]}  e5 {[%clk 0:02:53]} 7. d5 {[%clk 0:03:00]}  a5 {[%clk 0:02:50]} 8. Bg5 {[%clk 0:02:58]}  h6 {[%clk 0:02:49]} 9. Be3 {[%clk 0:02:58]}  Na6 {[%clk 0:02:46]} 10. Nd2 {[%clk 0:02:57]}  Nc5 {[%clk 0:02:44]} 11. O-O {[%clk 0:02:47]}  Kh7 {[%clk 0:02:42]} 12. Rb1 {[%clk 0:02:45]}  Nfd7 {[%clk 0:02:41]} 13. Kh1 {[%clk 0:02:43]}  f5 {[%clk 0:02:41]} 14. exf5 {[%clk 0:02:44]}  gxf5 {[%clk 0:02:40]} 15. f4 {[%clk 0:02:44]}  exf4 {[%clk 0:01:50]} 16. Bxf4 {[%clk 0:02:42]}  Ne5 {[%clk 0:01:49]} 17. Nf3 {[%clk 0:02:40]}  Bd7 {[%clk 0:01:34]} 18. Nd4 {[%clk 0:02:37]}  Qf6 {[%clk 0:01:28]} 19. Ndb5 {[%clk 0:02:16]}  Rac8 {[%clk 0:01:17]} 20. Qd2 {[%clk 0:02:07]}  Qg6 {[%clk 0:01:02]} 21. Nd4 {[%clk 0:01:52]}  Rce8 {[%clk 0:00:52]} 22. b3 {[%clk 0:01:52]}  Ne4 {[%clk 0:00:50]} 23. Nxe4 {[%clk 0:01:51]}  fxe4 {[%clk 0:00:50]} 24. Be3 {[%clk 0:01:49]}  Ng4 {[%clk 0:00:47]} 25. Bxg4 {[%clk 0:01:45]}  Bxg4 {[%clk 0:00:45]} 26. Kg1 {[%clk 0:01:41]}  Be5 {[%clk 0:00:45]} 27. g3 {[%clk 0:01:37]}  Bh3 {[%clk 0:00:36]} 28. Rxf8 {[%clk 0:01:36]}  Rxf8 {[%clk 0:00:37]} 29. Ne2 {[%clk 0:01:25]}  h5 {[%clk 0:00:29]} 30. Re1 {[%clk 0:01:20]}  h4 {[%clk 0:00:29]} 31. Nf4 {[%clk 0:01:20]}  Qg4 {[%clk 0:00:20]} 32. Nxh3 {[%clk 0:01:12]}  Qxh3 {[%clk 0:00:21]} 33. Qg2 {[%clk 0:01:12]}  Qxg2+ {[%clk 0:00:18]} 34. Kxg2 {[%clk 0:01:13]}  hxg3 {[%clk 0:00:17]} 35. hxg3 {[%clk 0:01:12]}  Rf3 {[%clk 0:00:15]} 36. Bf2 {[%clk 0:01:12]}  Rc3 {[%clk 0:00:10]} 37. Rxe4 {[%clk 0:01:06]}  Rc2 {[%clk 0:00:10]} 38. Kf3 {[%clk 0:00:56]}  Rxa2 {[%clk 0:00:10]} 39. Re2 {[%clk 0:00:52]}  Ra3 {[%clk 0:00:09]} 40. Re3 {[%clk 0:00:51]}  Kg6 {[%clk 0:00:10]} 41. Ke4 {[%clk 0:00:47]}  a4 {[%clk 0:00:09]} 42. bxa4 {[%clk 0:00:46]}  Rxa4 {[%clk 0:00:10]} 43. Kd3 {[%clk 0:00:46]}  Ra3+ {[%clk 0:00:10]} 44. Ke2 {[%clk 0:00:41]}  Ra2+ {[%clk 0:00:09]} 45. Kf3 {[%clk 0:00:40]}  Ra4 {[%clk 0:00:10]} 46. Re4 {[%clk 0:00:40]}  Ra3+ {[%clk 0:00:10]} 47. Kg4 {[%clk 0:00:40]}  Ra4 {[%clk 0:00:08]} 48. Kf3 {[%clk 0:00:34]}  Ra3+ {[%clk 0:00:08]} 49. Kg2 {[%clk 0:00:35]}  Ra2 {[%clk 0:00:08]} 50. g4 {[%clk 0:00:30]}  b6 {[%clk 0:00:07]} 51. Kf3 {[%clk 0:00:29]}  Ra3+ {[%clk 0:00:07]} 52. Be3 {[%clk 0:00:28]}  Rc3 {[%clk 0:00:07]} 53. Ke2 {[%clk 0:00:27]}  Rc2+ {[%clk 0:00:06]} 54. Kd3 {[%clk 0:00:27]}  Rc3+ {[%clk 0:00:07]} 55. Kd2 {[%clk 0:00:27]}  Ra3 {[%clk 0:00:07]} 56. Bd4 {[%clk 0:00:26]}  Ra2+ {[%clk 0:00:06]} 57. Kc3 {[%clk 0:00:25]}  Bxd4+ {[%clk 0:00:04]} 58. Kxd4 {[%clk 0:00:25]}  Rd2+ {[%clk 0:00:04]} 59. Kc3 {[%clk 0:00:26]}  Rg2 {[%clk 0:00:04]} 60. Re7 {[%clk 0:00:26]}  Rg3+ {[%clk 0:00:04]} 61. Kb4 {[%clk 0:00:25]}  Rxg4 {[%clk 0:00:03]} 62. Rxc7 {[%clk 0:00:25]}  Kf6 {[%clk 0:00:03]} 63. Rc6 {[%clk 0:00:21]}  Ke5 {[%clk 0:00:03]} 64. Rxb6 {[%clk 0:00:22]}  Rg1 {[%clk 0:00:04]} 65. Kb5 {[%clk 0:00:20]}  Rb1+ {[%clk 0:00:04]} 66. Kc6 {[%clk 0:00:20]}  Rc1 {[%clk 0:00:05]} 67. Rb4 {[%clk 0:00:20]}  Rc2 {[%clk 0:00:05]} 68. Ra4 {[%clk 0:00:20]}  Rc1 {[%clk 0:00:05]} 69. Kd7 {[%clk 0:00:21]}  Rc2 {[%clk 0:00:05]} 70. Kc6 {[%clk 0:00:21]}  Rc1 {[%clk 0:00:06]} 71. Kb5 {[%clk 0:00:21]}  Rb1+ {[%clk 0:00:06]} 72. Rb4 {[%clk 0:00:22]}  Rc1 {[%clk 0:00:06]} 73. Kb6 {[%clk 0:00:21]}  Rc2 {[%clk 0:00:07]} 74. Kc7 {[%clk 0:00:21]}  Rc1 {[%clk 0:00:07]} 75. Kb7 {[%clk 0:00:21]}  Rc2 {[%clk 0:00:08]} 76. Ra4 {[%clk 0:00:20]}  Rc1 {[%clk 0:00:08]} 77. Ka6 {[%clk 0:00:19]}  Rc2 {[%clk 0:00:08]} 78. Kb5 {[%clk 0:00:20]}  Rb2+ {[%clk 0:00:09]} 79. Rb4 {[%clk 0:00:21]}  Rc2 {[%clk 0:00:09]} 80. Rb3 {[%clk 0:00:21]}  Rc1 {[%clk 0:00:09]} 81. Re3+ {[%clk 0:00:21]}  Kd4 {[%clk 0:00:10]} 82. Re6 {[%clk 0:00:21]}  Rxc4 {[%clk 0:00:08]} 83. Rxd6 {[%clk 0:00:21]}  Rc5+ {[%clk 0:00:09]} 84. Kb6 {[%clk 0:00:22]}  Rxd5 {[%clk 0:00:10]} 85. Rc6 {[%clk 0:00:22]}  Re5 {[%clk 0:00:10]} 86. Rc1 {[%clk 0:00:22]}  Ke4 {[%clk 0:00:11]} 87. Kc6 {[%clk 0:00:21]}  Kf5 {[%clk 0:00:12]} 88. Kd6 {[%clk 0:00:22]}  Re6+ {[%clk 0:00:12]} 89. Kd7 {[%clk 0:00:22]}  Re5 {[%clk 0:00:12]} 90. Rf1+ {[%clk 0:00:22]}  Ke4 {[%clk 0:00:13]} 91. Kd6 {[%clk 0:00:22]}  Rf5 {[%clk 0:00:13]} 92. Re1+ {[%clk 0:00:22]}  Kd4 {[%clk 0:00:13]} 93. Rd1+ {[%clk 0:00:21]}  Kc4 {[%clk 0:00:13]} 94. Rc1+ {[%clk 0:00:20]}  Kd4 {[%clk 0:00:13]} 95. Ke6 {[%clk 0:00:20]}  Ra5 {[%clk 0:00:13]} 96. Rd1+ {[%clk 0:00:19]}  Ke4 {[%clk 0:00:13]} 97. Rb1 {[%clk 0:00:19]}  Ra6+ {[%clk 0:00:13]} 98. Kd7 {[%clk 0:00:19]}  Kd5 {[%clk 0:00:13]} 99. Kc7 {[%clk 0:00:20]}  Rh6 {[%clk 0:00:12]} 100. Rb5+ {[%clk 0:00:19]}  Kc4 {[%clk 0:00:12]} 101. Rb8 {[%clk 0:00:17]}  Rh7+ {[%clk 0:00:12]} 102. Kd6 {[%clk 0:00:18]}  Rh6+ {[%clk 0:00:13]} 103. Ke5 {[%clk 0:00:18]}  Rh5+ {[%clk 0:00:13]} 104. Kf4 {[%clk 0:00:19]}  Rb5 {[%clk 0:00:13]} 105. Rd8 {[%clk 0:00:18]}  Rc5 {[%clk 0:00:14]} 106. Ke4 {[%clk 0:00:18]}  Rc7 {[%clk 0:00:14]} 107. Re8 {[%clk 0:00:17]}  Rc6 {[%clk 0:00:13]} 108. Ke3 {[%clk 0:00:16]}  Kd5 {[%clk 0:00:12]} 109. Rd8+ {[%clk 0:00:16]}  Rd6 {[%clk 0:00:12]} 110. Rc8 {[%clk 0:00:16]}  Re6+ {[%clk 0:00:12]} 111. Kd3 {[%clk 0:00:17]}  Rd6 {[%clk 0:00:12]} 112. Ra8 {[%clk 0:00:17]}  Ke5+ {[%clk 0:00:13]} 113. Ke3 {[%clk 0:00:17]}  Rb6 {[%clk 0:00:13]} 114. Rh8 {[%clk 0:00:17]}  Rb3+ {[%clk 0:00:12]} 115. Kd2 {[%clk 0:00:17]}  Kf4 {[%clk 0:00:12]} 116. Rh4+ {[%clk 0:00:17]}  Kg5 {[%clk 0:00:12]} 117. Rc4 {[%clk 0:00:17]}  Rf3 {[%clk 0:00:13]} 118. Ke2 {[%clk 0:00:17]}  Rf4 {[%clk 0:00:13]} 119. Rc5+ {[%clk 0:00:17]}  Rf5 {[%clk 0:00:13]} 120. Rc3 {[%clk 0:00:17]}  Re5+ {[%clk 0:00:14]} 121. Kf3 {[%clk 0:00:17]}  Rf5+ {[%clk 0:00:14]} 122. Kg3 {[%clk 0:00:17]}  Ra5 {[%clk 0:00:14]} 123. Rf3 {[%clk 0:00:16]}  Rf5 {[%clk 0:00:14]} 124. Ra3 {[%clk 0:00:16]}  Rb5 {[%clk 0:00:14]} 125. Ra4 {[%clk 0:00:16]}  Rb3+ {[%clk 0:00:14]} 126. Kf2 {[%clk 0:00:17]}  Kf5 {[%clk 0:00:14]} 127. Ke2 {[%clk 0:00:17]}  Ke5 {[%clk 0:00:15]} 128. Kd2 {[%clk 0:00:17]}  Rh3 {[%clk 0:00:15]} 129. Ra5+ {[%clk 0:00:17]}  Ke4 {[%clk 0:00:15]} 130. Ra4+ {[%clk 0:00:17]}  Ke5 {[%clk 0:00:15]} 131. Ra5+ {[%clk 0:00:17]}  Ke4 {[%clk 0:00:16]} 132. Ra8 {[%clk 0:00:17]}  Ke5 {[%clk 0:00:16]} 133. Re8+ {[%clk 0:00:16]}  Kd4 {[%clk 0:00:16]} 134. Rd8+ {[%clk 0:00:16]}  Ke4 {[%clk 0:00:16]} 1/2-1/2


[Site "https://www.chess.com"]

[Event "Titled Tuesday Blitz May 23 Late 2023"]
[White "Kielinkei"]
[Black "Denishev, Marat"]
[BlackFideId "24131563"]
[WhiteElo "2465"]
[BlackElo "2311"]
[Result "0-1"]
[Round "10"]
[TimeControl "180+2"]
[Date "2023.05.23"]
[WhiteClock "0:00:00"]
[BlackClock "0:00:22"]

1. Nf3 {[%clk 0:02:59]}  Nf6 {[%clk 0:02:59]} 2. c4 {[%clk 0:02:59]}  c5 {[%clk 0:02:58]} 3. Nc3 {[%clk 0:02:57]}  b6 {[%clk 0:02:56]} 4. g3 {[%clk 0:02:56]}  Bb7 {[%clk 0:02:56]} 5. Bg2 {[%clk 0:02:57]}  e6 {[%clk 0:02:55]} 6. O-O {[%clk 0:02:56]}  Be7 {[%clk 0:02:56]} 7. d4 {[%clk 0:02:56]}  cxd4 {[%clk 0:02:56]} 8. Nxd4 {[%clk 0:02:54]}  Bxg2 {[%clk 0:02:57]} 9. Kxg2 {[%clk 0:02:55]}  d6 {[%clk 0:02:55]} 10. e4 {[%clk 0:02:54]}  Qc7 {[%clk 0:02:54]} 11. Qe2 {[%clk 0:02:49]}  a6 {[%clk 0:02:53]} 12. Be3 {[%clk 0:02:44]}  Nbd7 {[%clk 0:02:53]} 13. Rac1 {[%clk 0:02:39]}  O-O {[%clk 0:02:52]} 14. b3 {[%clk 0:02:37]}  Rac8 {[%clk 0:02:49]} 15. Rfd1 {[%clk 0:02:32]}  Qb7 {[%clk 0:02:48]} 16. f3 {[%clk 0:02:11]}  Rfe8 {[%clk 0:02:46]} 17. Qd2 {[%clk 0:02:06]}  Ne5 {[%clk 0:02:38]} 18. Nde2 {[%clk 0:01:48]}  b5 {[%clk 0:02:32]} 19. cxb5 {[%clk 0:01:44]}  axb5 {[%clk 0:02:33]} 20. a3 {[%clk 0:01:36]}  Red8 {[%clk 0:02:18]} 21. Qd4 {[%clk 0:01:19]}  h6 {[%clk 0:02:07]} 22. Qb6 {[%clk 0:01:15]}  Qa8 {[%clk 0:02:00]} 23. Qa7 {[%clk 0:00:50]}  Qc6 {[%clk 0:01:54]} 24. Nd5 {[%clk 0:00:46]}  Nxd5 {[%clk 0:01:54]} 25. exd5 {[%clk 0:00:45]}  Qa8 {[%clk 0:01:44]} 26. Qxe7 {[%clk 0:00:39]}  Rd7 {[%clk 0:01:29]} 27. Qh4 {[%clk 0:00:36]}  Rxc1 {[%clk 0:01:22]} 28. Bxc1 {[%clk 0:00:37]}  exd5 {[%clk 0:01:20]} 29. Qd4 {[%clk 0:00:36]}  Rc7 {[%clk 0:01:16]} 30. Qxd5 {[%clk 0:00:32]}  Qe8 {[%clk 0:00:58]} 31. Qe4 {[%clk 0:00:19]}  Qe6 {[%clk 0:00:46]} 32. Bb2 {[%clk 0:00:17]}  Qxb3 {[%clk 0:00:45]} 33. Qa8+ {[%clk 0:00:10]}  Kh7 {[%clk 0:00:44]} 34. Qe4+ {[%clk 0:00:11]}  Ng6 {[%clk 0:00:40]} 35. Rd2 {[%clk 0:00:09]}  d5 {[%clk 0:00:37]} 36. Qd3 {[%clk 0:00:08]}  Qxd3 {[%clk 0:00:35]} 37. Rxd3 {[%clk 0:00:09]}  Rc2 {[%clk 0:00:36]} 38. Kf2 {[%clk 0:00:07]}  Rxb2 {[%clk 0:00:35]} 39. Rxd5 {[%clk 0:00:07]}  f6 {[%clk 0:00:32]} 40. Ke3 {[%clk 0:00:07]}  Ne5 {[%clk 0:00:32]} 41. Rc5 {[%clk 0:00:03]}  Rb3+ {[%clk 0:00:28]} 42. Kd2 {[%clk 0:00:02]}  Nxf3+ {[%clk 0:00:24]} 43. Kc2 {[%clk 0:00:02]}  Rxa3 {[%clk 0:00:24]} 44. Rxb5 {[%clk 0:00:03]}  Ra2+ {[%clk 0:00:22]} 45. Kd3 {[%clk 0:00:00]}  Rxe2 {[%clk 0:00:22]} 0-1


[Site "https://www.chess.com"]

[Event "Titled Tuesday Blitz May 23 Late 2023"]
[White "Gubajdullin, Alexei"]
[Black "Golubev, Mikhail"]
[WhiteFideId "4141202"]
[BlackFideId "14100983"]
[WhiteElo "2279"]
[BlackElo "2374"]
[Result "1-0"]
[Round "10"]
[TimeControl "180+2"]
[Date "2023.05.23"]
[WhiteClock "0:01:11"]
[BlackClock "0:00:00"]

1. d4 {[%clk 0:03:00]}  Nf6 {[%clk 0:02:59]} 2. Nf3 {[%clk 0:03:00]}  d6 {[%clk 0:02:58]} 3. Bf4 {[%clk 0:03:00]}  Nbd7 {[%clk 0:02:57]} 4. h3 {[%clk 0:03:00]}  g6 {[%clk 0:02:56]} 5. e3 {[%clk 0:03:00]}  Bg7 {[%clk 0:02:57]} 6. Be2 {[%clk 0:03:00]}  O-O {[%clk 0:02:57]} 7. O-O {[%clk 0:03:00]}  Qe8 {[%clk 0:02:57]} 8. Bh2 {[%clk 0:02:59]}  e5 {[%clk 0:02:57]} 9. c4 {[%clk 0:03:00]}  Qe7 {[%clk 0:02:55]} 10. Nc3 {[%clk 0:02:58]}  Re8 {[%clk 0:02:35]} 11. Nb5 {[%clk 0:02:52]}  e4 {[%clk 0:02:19]} 12. Nxc7 {[%clk 0:02:14]}  exf3 {[%clk 0:02:18]} 13. Bxf3 {[%clk 0:02:13]}  Rb8 {[%clk 0:02:10]} 14. Nxe8 {[%clk 0:02:10]}  Nxe8 {[%clk 0:02:10]} 15. Qa4 {[%clk 0:02:10]}  b6 {[%clk 0:02:03]} 16. Qxa7 {[%clk 0:02:07]}  Qd8 {[%clk 0:01:34]} 17. a4 {[%clk 0:01:57]}  Bf8 {[%clk 0:01:21]} 18. b4 {[%clk 0:01:52]}  Qc7 {[%clk 0:01:16]} 19. Qxc7 {[%clk 0:01:49]}  Nxc7 {[%clk 0:01:17]} 20. b5 {[%clk 0:01:47]}  Bb7 {[%clk 0:01:02]} 21. a5 {[%clk 0:01:37]}  Bxf3 {[%clk 0:00:59]} 22. gxf3 {[%clk 0:01:36]}  bxa5 {[%clk 0:00:59]} 23. Rxa5 {[%clk 0:01:35]}  Rb7 {[%clk 0:00:48]} 24. Rfa1 {[%clk 0:01:31]}  Nb6 {[%clk 0:00:44]} 25. Ra7 {[%clk 0:01:29]}  Rxa7 {[%clk 0:00:44]} 26. Rxa7 {[%clk 0:01:29]}  Ne6 {[%clk 0:00:44]} 27. Rb7 {[%clk 0:01:11]}  Nxc4 {[%clk 0:00:00]} 28. b6 {[%clk 0:01:11]} 1-0


[Site "https://www.chess.com"]